[Event "Early-Titled-Tuesday-Blitz-January-23-2024"]
[Site "Chess.com"]
[Date "2024.01.23"]
[Round "11"]
[White "Grandelicious"]
[Black "kingofthenil"]
[Result "1-0"]
[WhiteElo "2902"]
[BlackElo "2700"]
[TimeControl "180+1"]
[EndTime "10:07:12 PST"]
[Termination "Grandelicious won on time"]

1. Nf3 {[%clk 0:03:00.9]} 1... d5 {[%clk 0:02:59.8]} 2. e3 {[%clk 0:03:01.1]}
2... Nf6 {[%clk 0:02:59.8]} 3. c4 {[%clk 0:03:01.8]} 3... e6 {[%clk 0:03:00.5]}
4. b3 {[%clk 0:03:01.7]} 4... Bd6 {[%clk 0:03:00.9]} 5. Bb2 {[%clk 0:03:01.7]}
5... O-O {[%clk 0:03:01.7]} 6. Nc3 {[%clk 0:02:58.9]} 6... Re8 {[%clk
0:03:00.9]} 7. g3 {[%clk 0:02:46.8]} 7... dxc4 {[%clk 0:02:58.1]} 8. bxc4 {[%clk
0:02:45.9]} 8... e5 {[%clk 0:02:59]} 9. Bg2 {[%clk 0:02:45.6]} 9... e4 {[%clk
0:02:32.6]} 10. Ng5 {[%clk 0:02:25.2]} 10... Bf5 {[%clk 0:02:28]} 11. f4 {[%clk
0:02:25.1]} 11... Na6 {[%clk 0:01:54.4]} 12. Nh3 {[%clk 0:02:18.4]} 12... Ng4
{[%clk 0:01:36.3]} 13. O-O {[%clk 0:02:03.8]} 13... Nc5 {[%clk 0:01:35.6]} 14.
Rb1 {[%clk 0:02:04]} 14... Nd3 {[%clk 0:01:29.2]} 15. Ba1 {[%clk 0:02:01.7]}
15... Qd7 {[%clk 0:01:24.8]} 16. Rxb7 {[%clk 0:01:39.4]} 16... Bc5 {[%clk
0:01:24.4]} 17. Nd5 {[%clk 0:01:30.9]} 17... Rac8 {[%clk 0:01:02.8]} 18. Qb3
{[%clk 0:01:17.2]} 18... Qd6 {[%clk 0:00:44.9]} 19. Qc3 {[%clk 0:01:10.5]} 19...
Qh6 {[%clk 0:00:44.7]} 20. Rxc7 {[%clk 0:01:04.7]} 20... Rxc7 {[%clk 0:00:20.9]}
21. Nxc7 {[%clk 0:01:05.6]} 21... Rd8 {[%clk 0:00:13.4]} 22. Nd5 {[%clk
0:01:05.5]} 22... f6 {[%clk 0:00:07]} 23. Qa5 {[%clk 0:01:03]} 23... Rxd5 {[%clk
0:00:02]} 24. cxd5 {[%clk 0:01:01.4]} 24... Nxe3 {[%clk 0:00:02.9]} 25. Qd8+
{[%clk 0:00:56.6]} 25... Kf7 {[%clk 0:00:03]} 26. dxe3 {[%clk 0:00:37.5]} 26...
Bxe3+ {[%clk 0:00:03]} 27. Kh1 {[%clk 0:00:38.1]} 27... Bxh3 {[%clk 0:00:03.9]}
28. Qc7+ {[%clk 0:00:34.8]} 28... Kf8 {[%clk 0:00:03.6]} 29. Rb1 {[%clk
0:00:29.8]} 29... Nf2+ {[%clk 0:00:02.9]} 30. Kg1 {[%clk 0:00:29.9]} 30... Ng4+
{[%clk 0:00:03.5]} 31. Kf1 {[%clk 0:00:30.4]} 31... Nxh2+ {[%clk 0:00:03.9]} 32.
Ke2 {[%clk 0:00:29.4]} 32... Qh5+ {[%clk 0:00:03.3]} 33. Kxe3 {[%clk 0:00:28.6]}
33... Ng4+ {[%clk 0:00:03.8]} 34. Kd4 {[%clk 0:00:29.1]} 34... Nf2 {[%clk
0:00:01.4]} 35. Rb8+ {[%clk 0:00:28.9]} 1-0

[Event "Early-Titled-Tuesday-Blitz-January-23-2024"]
[Site "Chess.com"]
[Date "2024.01.23"]
[Round "11"]
[White "ChessQueen"]
[Black "Goffredo_Fofi"]
[Result "1-0"]
[WhiteElo "2742"]
[BlackElo "2559"]
[TimeControl "180+1"]
[EndTime "10:07:12 PST"]
[Termination "ChessQueen won by resignation"]

1. d4 {[%clk 0:03:00.4]} 1... g6 {[%clk 0:03:00.2]} 2. e4 {[%clk 0:03:00]} 2...
Bg7 {[%clk 0:03:00.8]} 3. Nc3 {[%clk 0:03:00.4]} 3... c6 {[%clk 0:03:01.4]} 4.
Bc4 {[%clk 0:02:59.5]} 4... b5 {[%clk 0:02:59.4]} 5. Bb3 {[%clk 0:02:59]} 5...
a5 {[%clk 0:02:58.7]} 6. a4 {[%clk 0:02:57.7]} 6... b4 {[%clk 0:02:58.5]} 7.
Nce2 {[%clk 0:02:57.6]} 7... d5 {[%clk 0:02:57.2]} 8. exd5 {[%clk 0:02:44]} 8...
cxd5 {[%clk 0:02:58.1]} 9. Nf3 {[%clk 0:02:43.9]} 9... Nc6 {[%clk 0:02:44.1]}
10. Nf4 {[%clk 0:02:38.5]} 10... Nf6 {[%clk 0:02:41]} 11. Ne5 {[%clk 0:02:30.9]}
11... Bb7 {[%clk 0:02:38]} 12. h4 {[%clk 0:02:24.7]} 12... h6 {[%clk 0:02:25.5]}
13. Qd3 {[%clk 0:02:09.8]} 13... g5 {[%clk 0:01:17.9]} 14. Nxf7 {[%clk
0:01:57.6]} 14... gxf4 {[%clk 0:00:28.8]} 15. Nxd8 {[%clk 0:01:55.4]} 15... Rxd8
{[%clk 0:00:29.7]} 16. Bxf4 {[%clk 0:01:36.4]} 16... O-O {[%clk 0:00:18.7]} 17.
Qg6 {[%clk 0:01:32.8]} 17... Nxd4 {[%clk 0:00:19.1]} 18. Bxh6 {[%clk 0:01:30]}
18... Rf7 {[%clk 0:00:19.7]} 19. Rh3 {[%clk 0:01:20.4]} 19... Rd6 {[%clk
0:00:16]} 20. Rg3 {[%clk 0:01:07.3]} 20... Ne8 {[%clk 0:00:16.2]} 21. Qh5 {[%clk
0:00:58.8]} 21... Nf5 {[%clk 0:00:12.1]} 22. Bxg7 {[%clk 0:00:40.8]} 22... Nexg7
{[%clk 0:00:13]} 23. Rg6 {[%clk 0:00:40.4]} 23... Rff6 {[%clk 0:00:09.1]} 24.
Rxf6 {[%clk 0:00:36.5]} 24... Nxh5 {[%clk 0:00:04.5]} 25. Rxf5 {[%clk
0:00:36.6]} 25... Ng7 {[%clk 0:00:05.4]} 26. Re5 {[%clk 0:00:36.2]} 26... Kf7
{[%clk 0:00:05.4]} 27. O-O-O {[%clk 0:00:35.8]} 27... e6 {[%clk 0:00:05.6]} 28.
g4 {[%clk 0:00:35.5]} 28... Kf6 {[%clk 0:00:05]} 29. f4 {[%clk 0:00:34.6]} 29...
Ba6 {[%clk 0:00:05.3]} 30. h5 {[%clk 0:00:33.4]} 30... Rc6 {[%clk 0:00:05.6]}
31. g5+ {[%clk 0:00:33.4]} 31... Kf7 {[%clk 0:00:05.4]} 32. h6 {[%clk
0:00:33.6]} 32... Nf5 {[%clk 0:00:05.8]} 33. Bxd5 {[%clk 0:00:32.2]} 33... Rc5
{[%clk 0:00:02.3]} 34. Bxe6+ {[%clk 0:00:32]} 1-0

[Event "Early-Titled-Tuesday-Blitz-January-23-2024"]
[Site "Chess.com"]
[Date "2024.01.23"]
[Round "11"]
[White "GMJustin"]
[Black "Happy1712Drummer"]
[Result "1-0"]
[WhiteElo "2346"]
[BlackElo "2428"]
[TimeControl "180+1"]
[EndTime "10:07:14 PST"]
[Termination "GMJustin won by resignation"]

1. e4 {[%clk 0:02:01.1]} 1... c5 {[%clk 0:02:58.9]} 2. Nf3 {[%clk 0:02:00.7]}
2... e6 {[%clk 0:02:58]} 3. d4 {[%clk 0:02:00.3]} 3... cxd4 {[%clk 0:02:57.4]}
4. Nxd4 {[%clk 0:02:01.2]} 4... Nf6 {[%clk 0:02:57.9]} 5. Nc3 {[%clk 0:02:00.5]}
5... Nc6 {[%clk 0:02:55.6]} 6. Ndb5 {[%clk 0:01:59]} 6... Bc5 {[%clk 0:02:53.9]}
7. Bf4 {[%clk 0:01:57.7]} 7... O-O {[%clk 0:02:51.9]} 8. Bc7 {[%clk 0:01:57.5]}
8... Qe7 {[%clk 0:02:52.2]} 9. Bd6 {[%clk 0:01:57.8]} 9... Bxd6 {[%clk
0:02:52.4]} 10. Qxd6 {[%clk 0:01:58]} 10... Ne8 {[%clk 0:02:52.4]} 11. Qxe7
{[%clk 0:01:56.5]} 11... Nxe7 {[%clk 0:02:53.3]} 12. O-O-O {[%clk 0:01:54.3]}
12... f5 {[%clk 0:02:40.8]} 13. exf5 {[%clk 0:01:51.6]} 13... Nxf5 {[%clk
0:02:39.2]} 14. Bd3 {[%clk 0:01:29.5]} 14... a6 {[%clk 0:02:38.2]} 15. Bxf5
{[%clk 0:01:09.1]} 15... Rxf5 {[%clk 0:02:37.7]} 16. Nd6 {[%clk 0:00:56.5]}
16... Nxd6 {[%clk 0:02:37.3]} 17. Rxd6 {[%clk 0:00:56.7]} 17... Rxf2 {[%clk
0:02:38]} 18. Rg1 {[%clk 0:00:51.3]} 18... Kf8 {[%clk 0:02:26]} 19. Ne4 {[%clk
0:00:50.5]} 19... Rf4 {[%clk 0:02:11.3]} 20. Nc5 {[%clk 0:00:39.3]} 20... Ke7
{[%clk 0:02:07.8]} 21. Rgd1 {[%clk 0:00:38.6]} 21... Rf8 {[%clk 0:01:56.2]} 22.
Nxb7 {[%clk 0:00:28.8]} 22... Bxb7 {[%clk 0:01:35.1]} 23. Rxd7+ {[%clk
0:00:28.3]} 23... Kf6 {[%clk 0:01:35.9]} 24. Rxb7 {[%clk 0:00:28.4]} 24... Rfb8
{[%clk 0:01:21.7]} 25. Rdd7 {[%clk 0:00:25.8]} 25... Rxb7 {[%clk 0:01:21.3]} 26.
Rxb7 {[%clk 0:00:25.4]} 26... e5 {[%clk 0:01:14.6]} 27. Kd2 {[%clk 0:00:24]}
27... Rd8+ {[%clk 0:01:14.6]} 28. Ke3 {[%clk 0:00:24]} 28... Rd6 {[%clk
0:01:15.3]} 29. c4 {[%clk 0:00:23.6]} 29... h5 {[%clk 0:01:11.6]} 30. c5 {[%clk
0:00:23.6]} 30... Rd5 {[%clk 0:01:05.2]} 31. b4 {[%clk 0:00:23.3]} 31... g6
{[%clk 0:00:56.3]} 32. Rb6+ {[%clk 0:00:21.3]} 32... Kf5 {[%clk 0:00:56.3]} 33.
Rxa6 {[%clk 0:00:20.8]} 33... Rd1 {[%clk 0:00:56.4]} 34. c6 {[%clk 0:00:19.7]}
34... Rb1 {[%clk 0:00:53.1]} 35. c7 {[%clk 0:00:17.5]} 35... Rc1 {[%clk
0:00:52.7]} 36. Ra7 {[%clk 0:00:17.9]} 36... Rc3+ {[%clk 0:00:50.4]} 37. Kd2
{[%clk 0:00:17.7]} 37... Rc4 {[%clk 0:00:49.9]} 38. b5 {[%clk 0:00:17.6]} 38...
e4 {[%clk 0:00:48.5]} 39. b6 {[%clk 0:00:17.6]} 39... Kf4 {[%clk 0:00:47.7]} 40.
b7 {[%clk 0:00:17.4]} 40... e3+ {[%clk 0:00:47.5]} 41. Kd3 {[%clk 0:00:17]}
41... Rc6 {[%clk 0:00:35.2]} 42. b8=Q {[%clk 0:00:16]} 42... Rd6+ {[%clk
0:00:35.6]} 43. Ke2 {[%clk 0:00:16.2]} 43... Rd2+ {[%clk 0:00:36.2]} 44. Ke1
{[%clk 0:00:16.6]} 1-0

[Event "Early-Titled-Tuesday-Blitz-January-23-2024"]
[Site "Chess.com"]
[Date "2024.01.23"]
[Round "11"]
[White "Seochesspie"]
[Black "bazar-wokzal"]
[Result "1-0"]
[WhiteElo "2799"]
[BlackElo "2583"]
[TimeControl "180+1"]
[EndTime "10:07:17 PST"]
[Termination "Seochesspie won by resignation"]

1. d4 {[%clk 0:03:00.9]} 1... Nf6 {[%clk 0:02:59.3]} 2. Bf4 {[%clk 0:03:01.5]}
2... c5 {[%clk 0:02:58.8]} 3. d5 {[%clk 0:03:01.2]} 3... e6 {[%clk 0:02:46.3]}
4. Nc3 {[%clk 0:02:59.9]} 4... d6 {[%clk 0:02:38.7]} 5. e4 {[%clk 0:02:58.9]}
5... Be7 {[%clk 0:02:33.1]} 6. Bb5+ {[%clk 0:02:55.2]} 6... Bd7 {[%clk
0:02:29.2]} 7. dxe6 {[%clk 0:02:54.5]} 7... fxe6 {[%clk 0:02:20.4]} 8. e5 {[%clk
0:02:53.7]} 8... dxe5 {[%clk 0:02:13.9]} 9. Bxe5 {[%clk 0:02:52.9]} 9... O-O
{[%clk 0:02:13.6]} 10. Nf3 {[%clk 0:02:45.6]} 10... Nc6 {[%clk 0:02:03.6]} 11.
Bg3 {[%clk 0:02:32.2]} 11... Nh5 {[%clk 0:01:57.7]} 12. O-O {[%clk 0:02:30.8]}
12... Nxg3 {[%clk 0:01:56.8]} 13. hxg3 {[%clk 0:02:31]} 13... Bf6 {[%clk
0:01:48.1]} 14. Ne4 {[%clk 0:02:25.8]} 14... Bxb2 {[%clk 0:01:26.7]} 15. Rb1
{[%clk 0:02:25.3]} 15... Bd4 {[%clk 0:01:26.9]} 16. c3 {[%clk 0:02:24.8]} 16...
Bf6 {[%clk 0:01:26.1]} 17. Nxc5 {[%clk 0:02:24.5]} 17... Bc8 {[%clk 0:01:18]}
18. Qe2 {[%clk 0:02:22.2]} 18... Qe7 {[%clk 0:00:50.3]} 19. Bxc6 {[%clk
0:02:16.2]} 19... Qxc5 {[%clk 0:00:40.9]} 20. Bxb7 {[%clk 0:02:13.9]} 20... Bxb7
{[%clk 0:00:30.5]} 21. Qxe6+ {[%clk 0:02:11.3]} 21... Kh8 {[%clk 0:00:30.1]} 22.
Rxb7 {[%clk 0:02:10.8]} 22... Qxc3 {[%clk 0:00:25.1]} 23. Qb3 {[%clk 0:01:56.9]}
23... Qxb3 {[%clk 0:00:20.5]} 24. axb3 {[%clk 0:01:56.5]} 24... Rfb8 {[%clk
0:00:19.6]} 25. Rxb8+ {[%clk 0:01:55.7]} 25... Rxb8 {[%clk 0:00:20]} 26. Rb1
{[%clk 0:01:53.8]} 26... a5 {[%clk 0:00:19.8]} 27. Nd2 {[%clk 0:01:54]} 27...
Bc3 {[%clk 0:00:18.8]} 28. Ne4 {[%clk 0:01:52.9]} 28... Bb4 {[%clk 0:00:16.3]}
29. Kf1 {[%clk 0:01:51.6]} 29... Kg8 {[%clk 0:00:16.8]} 30. Ke2 {[%clk
0:01:49.3]} 30... Be7 {[%clk 0:00:17]} 31. Nd2 {[%clk 0:01:48.1]} 31... Bb4
{[%clk 0:00:16]} 32. Nc4 {[%clk 0:01:47.2]} 32... Kf7 {[%clk 0:00:14.1]} 33. Kd3
{[%clk 0:01:43]} 33... Rb5 {[%clk 0:00:13.9]} 34. Rb2 {[%clk 0:01:36.7]} 34...
Kf6 {[%clk 0:00:14.3]} 35. Re2 {[%clk 0:01:35.6]} 35... h5 {[%clk 0:00:12.5]}
36. Kc2 {[%clk 0:01:33.8]} 36... g5 {[%clk 0:00:12.1]} 37. f3 {[%clk 0:01:26.5]}
37... Rd5 {[%clk 0:00:09.8]} 38. Re3 {[%clk 0:01:22.7]} 38... Rd4 {[%clk
0:00:08.6]} 39. Rd3 {[%clk 0:01:22.5]} 39... Rxd3 {[%clk 0:00:06.3]} 40. Kxd3
{[%clk 0:01:23.4]} 40... Kf5 {[%clk 0:00:06.7]} 41. Ke2 {[%clk 0:01:16.8]} 41...
g4 {[%clk 0:00:05.3]} 42. Ne3+ {[%clk 0:01:15.8]} 42... Kg5 {[%clk 0:00:05.6]}
43. f4+ {[%clk 0:01:13.5]} 43... Kf6 {[%clk 0:00:06]} 44. Nd5+ {[%clk
0:01:11.9]} 44... Kf5 {[%clk 0:00:06.4]} 45. Nxb4 {[%clk 0:01:12.8]} 45... axb4
{[%clk 0:00:06.8]} 46. Ke3 {[%clk 0:01:13.3]} 46... Ke6 {[%clk 0:00:03.6]} 47.
Ke4 {[%clk 0:01:13.5]} 47... Kf6 {[%clk 0:00:04]} 48. f5 {[%clk 0:01:11.2]}
48... Kg5 {[%clk 0:00:04.1]} 49. Ke5 {[%clk 0:01:11.4]} 49... h4 {[%clk
0:00:04.7]} 50. gxh4+ {[%clk 0:01:10.3]} 50... Kxh4 {[%clk 0:00:05.6]} 51. f6
{[%clk 0:01:10.9]} 51... Kg3 {[%clk 0:00:06.4]} 52. f7 {[%clk 0:01:11.2]} 52...
Kxg2 {[%clk 0:00:07.3]} 53. f8=Q {[%clk 0:01:11.7]} 53... g3 {[%clk 0:00:08.2]}
54. Qxb4 {[%clk 0:01:11.8]} 54... Kh2 {[%clk 0:00:08.7]} 55. Qh4+ {[%clk
0:01:11.8]} 1-0

[Event "Early-Titled-Tuesday-Blitz-January-23-2024"]
[Site "Chess.com"]
[Date "2024.01.23"]
[Round "11"]
[White "stepanosinovsky"]
[Black "FMVolodymyrSakun"]
[Result "1-0"]
[WhiteElo "2382"]
[BlackElo "2506"]
[TimeControl "180+1"]
[EndTime "10:07:18 PST"]
[Termination "stepanosinovsky won by checkmate"]

1. e4 {[%clk 0:02:51.6]} 1... d5 {[%clk 0:02:58.5]} 2. exd5 {[%clk 0:02:51]}
2... Nf6 {[%clk 0:02:58.9]} 3. Bb5+ {[%clk 0:02:49.9]} 3... c6 {[%clk
0:02:58.7]} 4. dxc6 {[%clk 0:02:48.8]} 4... bxc6 {[%clk 0:02:58.3]} 5. Ba4
{[%clk 0:02:42.8]} 5... e5 {[%clk 0:02:57.6]} 6. d3 {[%clk 0:02:25.9]} 6... Bb4+
{[%clk 0:02:42.9]} 7. Nc3 {[%clk 0:02:26.4]} 7... Qa5 {[%clk 0:02:41.9]} 8. Bb3
{[%clk 0:02:20.1]} 8... Bxc3+ {[%clk 0:02:32.5]} 9. bxc3 {[%clk 0:02:21]} 9...
Qxc3+ {[%clk 0:02:32.6]} 10. Bd2 {[%clk 0:02:20.9]} 10... Qc5 {[%clk 0:02:30]}
11. Nf3 {[%clk 0:02:13]} 11... e4 {[%clk 0:02:20.7]} 12. dxe4 {[%clk 0:01:53.9]}
12... Nxe4 {[%clk 0:02:06.1]} 13. O-O {[%clk 0:01:52.8]} 13... O-O {[%clk
0:01:59.1]} 14. Be3 {[%clk 0:01:49.4]} 14... Qh5 {[%clk 0:01:55.5]} 15. Qd4
{[%clk 0:01:43.9]} 15... Bf5 {[%clk 0:01:48.7]} 16. Ne5 {[%clk 0:01:32.2]} 16...
Nf6 {[%clk 0:00:46.4]} 17. Nxf7 {[%clk 0:01:07.5]} 17... Nd5 {[%clk 0:00:26]}
18. Ne5 {[%clk 0:00:57.3]} 18... Be6 {[%clk 0:00:22]} 19. Rae1 {[%clk
0:00:35.4]} 19... Kh8 {[%clk 0:00:16.4]} 20. Bc1 {[%clk 0:00:31.8]} 20... Bg8
{[%clk 0:00:16.2]} 21. Bb2 {[%clk 0:00:27.1]} 21... a5 {[%clk 0:00:13.6]} 22.
Re4 {[%clk 0:00:21.6]} 22... Ra7 {[%clk 0:00:11.1]} 23. Rh4 {[%clk 0:00:20.6]}
23... Qg5 {[%clk 0:00:10.8]} 24. Rg4 {[%clk 0:00:14.7]} 24... Qe7 {[%clk
0:00:09.8]} 25. Re1 {[%clk 0:00:13.3]} 25... Nd7 {[%clk 0:00:07.2]} 26. Ng6+
{[%clk 0:00:11.9]} 26... hxg6 {[%clk 0:00:05.1]} 27. Rxe7 {[%clk 0:00:11.6]}
27... Nxe7 {[%clk 0:00:03.2]} 28. Qxg7# {[%clk 0:00:10.1]} 1-0

[Event "Early-Titled-Tuesday-Blitz-January-23-2024"]
[Site "Chess.com"]
[Date "2024.01.23"]
[Round "11"]
[White "1mbl4"]
[Black "bubeliang"]
[Result "1-0"]
[WhiteElo "2585"]
[BlackElo "2765"]
[TimeControl "180+1"]
[EndTime "10:07:19 PST"]
[Termination "1mbl4 won by checkmate"]

1. e4 {[%clk 0:03:00.9]} 1... b6 {[%clk 0:02:58.4]} 2. d4 {[%clk 0:03:00.1]}
2... Bb7 {[%clk 0:02:59.3]} 3. Nc3 {[%clk 0:02:59.4]} 3... e6 {[%clk 0:03:00.2]}
4. a3 {[%clk 0:02:57.2]} 4... g6 {[%clk 0:02:59.6]} 5. Nf3 {[%clk 0:02:55.9]}
5... Bg7 {[%clk 0:02:58.8]} 6. Bd3 {[%clk 0:02:55.6]} 6... Ne7 {[%clk
0:02:58.6]} 7. O-O {[%clk 0:02:55.2]} 7... O-O {[%clk 0:02:59.3]} 8. Re1 {[%clk
0:02:55.1]} 8... d6 {[%clk 0:02:59.9]} 9. h4 {[%clk 0:02:51.7]} 9... c5 {[%clk
0:02:57.9]} 10. dxc5 {[%clk 0:02:38]} 10... dxc5 {[%clk 0:02:58.6]} 11. h5
{[%clk 0:02:37.6]} 11... Nbc6 {[%clk 0:02:57]} 12. h6 {[%clk 0:02:36.5]} 12...
Bh8 {[%clk 0:02:56.7]} 13. Bc4 {[%clk 0:02:32]} 13... Nd4 {[%clk 0:02:54.8]} 14.
Ng5 {[%clk 0:02:10]} 14... Nec6 {[%clk 0:02:45.2]} 15. Ne2 {[%clk 0:02:02.4]}
15... Bf6 {[%clk 0:02:35]} 16. Nxd4 {[%clk 0:01:58.1]} 16... Nxd4 {[%clk
0:02:34.4]} 17. Qg4 {[%clk 0:01:53.9]} 17... Nxc2 {[%clk 0:02:32.1]} 18. Rd1
{[%clk 0:01:39.3]} 18... Qe7 {[%clk 0:02:17.3]} 19. Rb1 {[%clk 0:01:36]} 19...
Rfd8 {[%clk 0:02:16.2]} 20. Bf4 {[%clk 0:01:31.5]} 20... Rd4 {[%clk 0:01:44.4]}
21. Rxd4 {[%clk 0:01:25.6]} 21... Nxd4 {[%clk 0:01:45.3]} 22. Re1 {[%clk
0:01:15.9]} 22... Rd8 {[%clk 0:01:37.5]} 23. e5 {[%clk 0:01:01.2]} 23... Bh8
{[%clk 0:01:34.9]} 24. Ne4 {[%clk 0:01:01.1]} 24... Bxe4 {[%clk 0:01:25.6]} 25.
Bg5 {[%clk 0:01:00.1]} 25... Qb7 {[%clk 0:01:26.5]} 26. Bxd8 {[%clk 0:00:57.3]}
26... Bxg2 {[%clk 0:01:24]} 27. Qxg2 {[%clk 0:00:53]} 27... Qf3 {[%clk
0:01:03.3]} 28. Bf6 {[%clk 0:00:48.8]} 28... Bxf6 {[%clk 0:00:31.5]} 29. exf6
{[%clk 0:00:48.5]} 29... Kf8 {[%clk 0:00:26.2]} 30. Re3 {[%clk 0:00:44.2]} 30...
Qxf6 {[%clk 0:00:16.6]} 31. Qa8+ {[%clk 0:00:39.9]} 31... Ke7 {[%clk 0:00:16.4]}
32. Qxa7+ {[%clk 0:00:40.2]} 32... Kf8 {[%clk 0:00:15.1]} 33. Qb8+ {[%clk
0:00:39.6]} 33... Ke7 {[%clk 0:00:13.9]} 34. Qb7+ {[%clk 0:00:35.9]} 34... Kf8
{[%clk 0:00:11.9]} 35. Qxb6 {[%clk 0:00:36]} 35... Qg5+ {[%clk 0:00:09.1]} 36.
Kf1 {[%clk 0:00:35.8]} 36... Qh5 {[%clk 0:00:01.9]} 37. Qd8# {[%clk 0:00:33.2]}
1-0

[Event "Early-Titled-Tuesday-Blitz-January-23-2024"]
[Site "Chess.com"]
[Date "2024.01.23"]
[Round "11"]
[White "GHANDEEVAM2003"]
[Black "ViIIagra"]
[Result "1-0"]
[WhiteElo "3054"]
[BlackElo "2976"]
[TimeControl "180+1"]
[EndTime "10:07:21 PST"]
[Termination "GHANDEEVAM2003 won by resignation"]

1. c4 {[%clk 0:03:00.9]} 1... g6 {[%clk 0:02:59.9]} 2. Nc3 {[%clk 0:02:59.7]}
2... Bg7 {[%clk 0:02:59.4]} 3. g3 {[%clk 0:03:00.4]} 3... Nf6 {[%clk 0:02:43.9]}
4. Bg2 {[%clk 0:03:00.2]} 4... O-O {[%clk 0:02:44.4]} 5. e4 {[%clk 0:02:57.2]}
5... c5 {[%clk 0:02:41.9]} 6. Nge2 {[%clk 0:02:56.9]} 6... Nc6 {[%clk 0:02:42]}
7. d3 {[%clk 0:02:56.7]} 7... Rb8 {[%clk 0:02:38.4]} 8. O-O {[%clk 0:02:52.3]}
8... a6 {[%clk 0:02:38.4]} 9. a4 {[%clk 0:02:52.2]} 9... Ne8 {[%clk 0:02:33.2]}
10. Be3 {[%clk 0:02:51.8]} 10... Nd4 {[%clk 0:02:31]} 11. Rb1 {[%clk 0:02:46.2]}
11... b5 {[%clk 0:01:53.5]} 12. cxb5 {[%clk 0:02:29.3]} 12... axb5 {[%clk
0:01:51.8]} 13. Bxd4 {[%clk 0:02:29.2]} 13... cxd4 {[%clk 0:01:51.4]} 14. Nxb5
{[%clk 0:02:29.7]} 14... Ba6 {[%clk 0:01:50.5]} 15. Nbxd4 {[%clk 0:02:18.4]}
15... Rb4 {[%clk 0:01:48.1]} 16. Nc2 {[%clk 0:02:02.2]} 16... Rxa4 {[%clk
0:01:41.2]} 17. Qd2 {[%clk 0:02:00.4]} 17... Nd6 {[%clk 0:01:35.5]} 18. Nc3
{[%clk 0:01:56.6]} 18... Ra5 {[%clk 0:01:18.2]} 19. b4 {[%clk 0:01:55.3]} 19...
Rh5 {[%clk 0:00:59.5]} 20. Bf3 {[%clk 0:01:54.6]} 20... Bxc3 {[%clk 0:00:23.8]}
21. Qxc3 {[%clk 0:01:55.5]} 21... Rb5 {[%clk 0:00:24.3]} 22. e5 {[%clk
0:01:44.6]} 22... Nf5 {[%clk 0:00:20.7]} 23. Na3 {[%clk 0:01:39.5]} 23... Rb8
{[%clk 0:00:17.7]} 24. b5 {[%clk 0:01:36.8]} 24... Bb7 {[%clk 0:00:18.1]} 25.
Be4 {[%clk 0:01:31]} 25... d5 {[%clk 0:00:16.4]} 26. Bxf5 {[%clk 0:01:30.5]}
26... d4 {[%clk 0:00:16.2]} 27. Qd2 {[%clk 0:01:25.7]} 27... gxf5 {[%clk
0:00:16.5]} 28. Qg5+ {[%clk 0:01:21.4]} 28... Kh8 {[%clk 0:00:16.9]} 29. Qxf5
{[%clk 0:01:22.3]} 29... Qd5 {[%clk 0:00:16.3]} 30. f3 {[%clk 0:01:22.4]} 30...
Ra8 {[%clk 0:00:16.8]} 31. Nc4 {[%clk 0:01:15.9]} 31... Ra2 {[%clk 0:00:17.1]}
32. Rf2 {[%clk 0:01:03.5]} 32... Rxf2 {[%clk 0:00:15.9]} 33. Kxf2 {[%clk
0:01:04.4]} 33... Ra8 {[%clk 0:00:16.6]} 34. Rf1 {[%clk 0:00:59.5]} 34... Kg7
{[%clk 0:00:10.8]} 35. Kg1 {[%clk 0:00:39.8]} 35... Qxb5 {[%clk 0:00:10.5]} 36.
Qg4+ {[%clk 0:00:40]} 36... Kf8 {[%clk 0:00:09.9]} 37. Qxd4 {[%clk 0:00:40.4]}
37... Ra2 {[%clk 0:00:09.4]} 38. e6 {[%clk 0:00:39.3]} 38... fxe6 {[%clk
0:00:07.7]} 39. Qh8+ {[%clk 0:00:38.7]} 1-0